lending/lending_fUSD_20250719
["ID","MTS","AMOUNT","RATE_DAILY","PERIOD"]
[373234832,1752919853444,-480.0,0.00019287,2]
[373234834,1752919853454,-480.0,0.00019287,2]
[373234836,1752919853463,-445.47382599,0.00019287,2]
[373234838,1752919853472,-441.39928551,0.00019287,2]
[373234840,1752919853481,-1659.56,0.00019287,2]
[373234842,1752919853491,-480.0,0.00019287,2]
[373234844,1752919853500,-480.0,0.00019287,2]
[373234846,1752919853509,-658.15,0.00019287,2]
[373234848,1752919853518,-480.0,0.00019287,2]
[373234850,1752919853527,-480.0,0.00019287,2]
[373234852,1752919853536,-412.21,0.00019287,2]
[373234854,1752919853545,-228.21,0.00019287,2]
[373234856,1752919853554,-442.52806473,0.00019287,2]
[373234857,1752919853563,-480.0,0.00019287,2]
[373234859,1752919853573,-473.75798311,0.00019287,2]
[373234861,1752919853582,-440.0,0.00019287,2]
[373234863,1752919853591,-676.84,0.00019287,2]
[373234865,1752919853600,-480.0,0.00019287,2]
[373234867,1752919853610,-448.80716671,0.00019287,2]
[373234869,1752919853619,-440.0,0.00019287,2]
[373234871,1752919853628,-451.53309085,0.00019287,2]
[373234873,1752919853638,-480.0,0.00019287,2]
[373234875,1752919853647,-480.0,0.00019287,2]
[373234877,1752919853657,-480.0,0.00019287,2]
[373234879,1752919853667,-440.0,0.00019287,2]
[373234881,1752919853676,-442.50794167,0.00019287,2]
[373234883,1752919853685,-480.0,0.00019287,2]
[373234885,1752919853694,-441.86493304,0.00019287,2]
[373234887,1752919853703,-1947.23,0.00019287,2]
[373234889,1752919853713,-480.0,0.00019287,2]
[373234891,1752919853722,-480.0,0.00019287,2]
[373234893,1752919853733,-837.04,0.00019287,2]
[373234895,1752919853743,-1120.43,0.00019287,2]
[373234897,1752919853752,-151.0,0.00019287,2]
[373234899,1752919853762,-278.257476,0.00019287,2]
[373234901,1752919853772,-480.0,0.00019287,2]
[373234903,1752919853781,-440.0,0.00019287,2]
[373234905,1752919853791,-1479.44,0.00019287,2]
[373234907,1752919853806,-480.0,0.00019287,2]
[373234910,1752919853815,-449.64029847,0.00019287,2]
[373234912,1752919853825,-480.0,0.00019287,2]
[373234913,1752919853838,-480.0,0.00019287,2]
[373234916,1752919853849,-443.73202388,0.00019287,2]
[373234917,1752919853858,-447.65482587,0.00019287,2]
[373234919,1752919853868,-1104.98,0.00019287,2]
[373234922,1752919853879,-1240.19,0.00019287,2]
[373234924,1752919853888,-480.0,0.00019287,2]
[373234926,1752919853898,-480.0,0.00019287,2]
[373234927,1752919853909,-446.90065996,0.00019287,2]
[373234930,1752919853919,-440.0,0.00019287,2]
[373234932,1752919853929,-1213.06,0.00019287,2]
[373234933,1752919853938,-440.0,0.00019287,2]
[373234935,1752919853948,-1325.85,0.00019287,2]
[373234947,1752919853957,-480.0,0.00019287,2]
[373234951,1752919854075,-480.0,0.00019287,2]
[373234953,1752919854085,-444.38543446,0.00019287,2]
[373234955,1752919854095,-480.0,0.00019287,2]
[373234957,1752919854105,-470.87,0.00019287,2]
[373234959,1752919854115,-480.0,0.00019287,2]
[373234961,1752919854124,-480.0,0.00019287,2]
[373234963,1752919854134,-475.46603749,0.00019287,2]
[373234965,1752919854144,-480.0,0.00019287,2]
[373234967,1752919854153,-495.17,0.00019287,2]
[373234969,1752919854162,-602.67,0.00019287,2]
[373234971,1752919854172,-480.0,0.00019287,2]
[373234972,1752919854181,-480.0,0.00019287,2]
[373234974,1752919854191,-457.45699132,0.00019287,2]
[373234976,1752919854201,-449.10389541,0.00019287,2]
[373234979,1752919854211,-443.65017496,0.00019287,2]
[373234980,1752919854220,-443.60153256,0.00019287,2]
[373234982,1752919854230,-1656.17,0.00019287,2]
[373234984,1752919854242,-480.0,0.00019287,2]
[373234986,1752919854251,-480.0,0.00019287,2]
[373234988,1752919854260,-442.94899359,0.00019287,2]
[373234990,1752919854271,-480.0,0.00019287,2]
[373234992,1752919854280,-480.0,0.00019287,2]
[373234994,1752919854290,-2682.58,0.00019287,2]
[373234996,1752919854299,-480.0,0.00019287,2]
[373234998,1752919854309,-480.0,0.00019287,2]
[373235000,1752919854319,-2820.87,0.00019287,2]
[373235002,1752919854330,-955.39,0.00019287,2]
[373235004,1752919854340,-480.0,0.00019287,2]
[373235007,1752919854350,-480.0,0.00019287,2]
[373235008,1752919854360,-480.0,0.00019287,2]
[373235011,1752919854370,-480.0,0.00019287,2]
[373235012,1752919854380,-440.0,0.00019287,2]
[373235015,1752919854390,-444.41415183,0.00019287,2]
[373235017,1752919854400,-824.58,0.00019287,2]
[373235019,1752919854410,-440.0,0.00019287,2]
[373235021,1752919854419,-480.0,0.00019287,2]
[373235023,1752919854429,-443.04326449,0.00019287,2]
[373235025,1752919854438,-480.0,0.00019287,2]
[373235027,1752919854448,-480.0,0.00019287,2]
[373235029,1752919854458,-444.65944506,0.00019287,2]
[373235031,1752919854468,-480.0,0.00019287,2]
[373235033,1752919854477,-1507.25,0.00019287,2]
[373235035,1752919854488,-1820.5,0.00019287,2]
[373235037,1752919854498,-447.5654468,0.00019287,2]
[373235039,1752919854507,-1304.87,0.00019287,2]
[373235041,1752919854518,-1009.35,0.00019287,2]
[373235043,1752919854528,-480.0,0.00019287,2]
[373235044,1752919854538,-480.0,0.00019287,2]
[373235047,1752919854548,-262.68705969,0.00019287,2]
[373235049,1752919854558,-160.71647842,0.00019287,2]
[373235050,1752919854568,-495.55018,0.00019287,2]
[373235052,1752919854578,-1085.77,0.00019287,2]
[373235054,1752919854587,-450.81969621,0.00019287,2]
[373235056,1752919854597,-480.0,0.00019287,2]
[373235058,1752919854607,-485.30553525,0.00019287,2]
[373235059,1752919854618,-677.53,0.00019287,2]
[373235060,1752919854628,-621.85,0.00019287,2]
[373235061,1752919854638,-443.65321587,0.00019287,2]
[373235062,1752919854648,-506.06,0.00019287,2]
[373235063,1752919854658,-480.0,0.00019287,2]
[373235064,1752919854668,-578.45,0.00019287,2]
[373235065,1752919854678,-480.0,0.00019287,2]
[373235066,1752919854687,-440.0,0.00019287,2]
[373235067,1752919854697,-151.51,0.00019287,2]
[373235068,1752919854706,-455.33893025,0.00019287,2]
[373235069,1752919854716,-448.91683372,0.00019287,2]
[373235070,1752919854726,-1106.32,0.00019287,2]
[373235071,1752919854737,-502.91,0.00019287,2]
[373235072,1752919854747,-480.0,0.00019287,2]
[373235074,1752919854757,-1288.84,0.00019287,2]
[373235076,1752919854768,-444.99631431,0.00019287,2]
[373235077,1752919854778,-505.94,0.00019287,2]
[373235079,1752919854788,-480.0,0.00019287,2]
[373235081,1752919854799,-443.36926178,0.00019287,2]
[373235082,1752919854809,-480.0,0.00019287,2]
[373235083,1752919854819,-450.26968027,0.00019287,2]
[373235084,1752919854831,-518.09,0.00019287,2]
[373235085,1752919854841,-480.0,0.00019287,2]
[373235086,1752919854851,-1483.96,0.00019287,2]
[373235087,1752919854860,-480.0,0.00019287,2]
[373235088,1752919854869,-480.0,0.00019287,2]
[373235089,1752919854882,-480.0,0.00019287,2]
[373235091,1752919854892,-480.0,0.00019287,2]
[373235092,1752919854902,-480.0,0.00019287,2]
[373235094,1752919854912,-480.0,0.00019287,2]
[373235095,1752919854922,-579.77594169,0.00019287,2]
[373235097,1752919854932,-442.75260159,0.00019287,2]
[373235099,1752919854942,-151.0,0.00019287,2]
[373235102,1752919854951,-445.99286703,0.00019287,2]
[373235104,1752919854961,-480.0,0.00019287,2]
[373235106,1752919854971,-892.94,0.00019287,2]
[373235108,1752919854981,-577.53,0.00019287,2]
[373235110,1752919854993,-449.90713531,0.00019287,2]
[373235112,1752919855002,-480.0,0.00019287,2]
[373235114,1752919855011,-442.6431372,0.00019287,2]
[373235116,1752919855021,-1122.99,0.00019287,2]
[373235118,1752919855030,-781.22,0.00019287,2]
[373235120,1752919855040,-480.0,0.00019287,2]
[373235122,1752919855049,-432.41145568,0.00019287,2]
[373235123,1752919855059,-480.0,0.00019287,2]
[373235124,1752919855069,-447.44826949,0.00019287,2]
[373235125,1752919855079,-480.0,0.00019287,2]
[373235126,1752919855089,-480.0,0.00019287,2]
[373235127,1752919855099,-699.81,0.00019287,2]
[373235128,1752919855109,-449.18197769,0.00019287,2]
[373235129,1752919855119,-480.0,0.00019287,2]
[373235130,1752919855129,-447.72360498,0.00019287,2]
[373235131,1752919855139,-2398.3,0.00019287,2]
[373235132,1752919855148,-480.0,0.00019287,2]
[373235134,1752919855158,-480.0,0.00019287,2]
[373235136,1752919855168,-480.0,0.00019287,2]
[373235138,1752919855177,-480.0,0.00019287,2]
[373235140,1752919855187,-480.0,0.00019287,2]
[373235142,1752919855196,-480.0,0.00019287,2]
[373235144,1752919855206,-480.0,0.00019287,2]
[373235147,1752919855216,-1143.42,0.00019287,2]
[373235149,1752919855226,-442.56427899,0.00019287,2]
[373235150,1752919855237,-441.25741364,0.00019287,2]
[373235153,1752919855247,-480.0,0.00019287,2]
[373235155,1752919855258,-451.38260362,0.00019287,2]
[373235157,1752919855268,-480.0,0.00019287,2]
[373235159,1752919855278,-480.0,0.00019287,2]
[373235160,1752919855287,-480.0,0.00019287,2]
[373235163,1752919855297,-443.05224778,0.00019287,2]
[373235165,1752919855307,-467.92823983,0.00019287,2]
[373235167,1752919855317,-480.0,0.00019287,2]
[373235168,1752919855326,-480.0,0.00019287,2]
[373235171,1752919855336,-852.18,0.00019287,2]
[373235173,1752919855346,-480.0,0.00019287,2]
[373235175,1752919855356,-480.0,0.00019287,2]
[373235177,1752919855366,-480.0,0.00019287,2]
[373235178,1752919855375,-480.0,0.00019287,2]
[373235181,1752919855386,-480.0,0.00019287,2]
[373235183,1752919855395,-539.87,0.00019287,2]
[373235185,1752919855405,-1158.1,0.00019287,2]
[373235186,1752919855415,-480.0,0.00019287,2]
[373235188,1752919855424,-480.0,0.00019287,2]
[373235189,1752919855434,-502.23,0.00019287,2]
[373235191,1752919855443,-480.0,0.00019287,2]
[373235193,1752919855454,-453.70441577,0.00019287,2]
[373235195,1752919855463,-480.0,0.00019287,2]
[373235197,1752919855473,-480.0,0.00019287,2]
[373235199,1752919855483,-480.0,0.00019287,2]
[373235201,1752919855493,-446.97824123,0.00019287,2]
[373235203,1752919855502,-545.06,0.00019287,2]
[373235205,1752919855512,-2905.24,0.00019287,2]
[373235207,1752919855522,-440.0,0.00019287,2]
[373235209,1752919855531,-480.0,0.00019287,2]
[373235211,1752919855541,-567.35,0.00019287,2]
[373235213,1752919855550,-480.0,0.00019287,2]
[373235215,1752919855559,-1130.47,0.00019287,2]
[373235216,1752919855569,-454.8780953,0.00019287,2]
[373235218,1752919855578,-264.550776,0.00019287,2]
[373235220,1752919855588,-1538.89,0.00019287,2]
[373235222,1752919855598,-480.0,0.00019287,2]
[373235224,1752919855607,-480.0,0.00019287,2]
[373235226,1752919855617,-347.0,0.00019303,2]
[373235228,1752919855626,-154.990328,0.00019323,2]
[373235230,1752919855637,-152.27404,0.00019323,2]
[373235232,1752919855646,-151.0,0.00019323,2]
[373235234,1752919855656,-151.0,0.00019323,2]
[373235236,1752919855666,-151.0,0.00019323,2]
[373235238,1752919855676,-262.523976,0.00019323,2]
[373235240,1752919855686,-200.0,0.00019331,2]
[373235242,1752919855695,-1126.02765,0.0001935,2]
[373235244,1752919855705,-2827.7640481,0.00019371,2]
[373235246,1752919855714,-200.0,0.00019382,2]
[373235248,1752919855725,-1178.16015,0.00019388,2]
[373235250,1752919855735,-230.87165002,0.00019396,2]
[373235252,1752919855744,-429.40965625,0.00019397,2]
[373235254,1752919855754,-423.83816358,0.00019397,2]
[373235256,1752919855763,-480.0,0.00019397,2]
[373235258,1752919855773,-409.38131849,0.00019397,2]
[373235260,1752919855782,-437.0405703,0.00019397,2]
[373235261,1752919855792,-626.69,0.00019397,2]
[373235262,1752919855801,-440.0,0.00019397,2]
[373235263,1752919855811,-480.0,0.00019397,2]
[373235264,1752919855820,-480.0,0.00019397,2]
[373235265,1752919855831,-480.0,0.00019397,2]
[373235266,1752919855841,-429.65,0.00019397,2]
[373235267,1752919855851,-480.0,0.00019397,2]
[373235268,1752919855861,-480.0,0.00019397,2]
[373235269,1752919855870,-480.0,0.00019397,2]
[373235270,1752919855881,-299.76,0.00019397,2]
[373235271,1752919855890,-480.0,0.00019397,2]
[373235272,1752919855901,-480.0,0.00019397,2]
[373235273,1752919855911,-480.0,0.00019397,2]
[373235274,1752919855920,-480.0,0.00019397,2]
[373235275,1752919855929,-480.0,0.00019397,2]
[373235276,1752919855939,-416.5,0.00019397,2]
[373235277,1752919855948,-253.84,0.00019397,2]
[373235278,1752919855958,-378.32,0.00019397,2]
[373235279,1752919855967,-454.22,0.00019397,2]
[373235280,1752919855977,-420.0,0.00019397,2]
[373235281,1752919855987,-480.0,0.00019397,2]
[373235282,1752919855996,-480.0,0.00019397,2]
[373235284,1752919856006,-153.17,0.00019397,2]
[373235286,1752919856015,-162.3659202,0.00019397,2]
[373235287,1752919856024,-435.85856543,0.00019397,2]
[373235288,1752919856034,-480.0,0.00019397,2]
[373235289,1752919856043,-480.0,0.00019397,2]
[373235290,1752919856052,-342.3,0.00019397,2]
[373235291,1752919856062,-467.03,0.00019397,2]
[373235292,1752919856071,-309.01,0.00019397,2]
[373235293,1752919856081,-151.0,0.00019397,2]
[373235294,1752919856091,-268.0,0.00019397,2]
[373235295,1752919856100,-478.06,0.00019397,2]
[373235296,1752919856109,-238.71,0.00019397,2]
[373235297,1752919856119,-480.0,0.00019397,2]
[373235298,1752919856128,-298.95,0.00019397,2]
[373235299,1752919856137,-458.11878192,0.00019397,2]
[373235300,1752919856147,-380.14,0.00019397,2]
[373235301,1752919856156,-480.0,0.00019397,2]
[373235302,1752919856166,-480.0,0.00019397,2]
[373235303,1752919856175,-480.0,0.00019397,2]
[373235304,1752919856188,-590.74,0.00019397,2]
[373235305,1752919856197,-393.55608606,0.00019397,2]
[373235306,1752919856428,-480.0,0.00019397,2]
[373235307,1752919856483,-428.97,0.00019397,2]
[373235308,1752919856493,-480.0,0.00019397,2]
[373235309,1752919856503,-432.18,0.00019397,2]
[373235310,1752919856513,-420.0,0.00019397,2]
[373235311,1752919856522,-390.60110816,0.00019397,2]
[373235312,1752919856531,-420.0,0.00019397,2]
[373235313,1752919856541,-480.0,0.00019397,2]
[373235314,1752919856551,-480.0,0.00019397,2]
[373235315,1752919856560,-480.0,0.00019397,2]
[373235316,1752919856569,-480.0,0.00019397,2]
[373235317,1752919856579,-480.0,0.00019397,2]
[373235318,1752919856588,-627.87,0.00019397,2]
[373235319,1752919856597,-480.0,0.00019397,2]
[373235320,1752919856607,-480.0,0.00019397,2]
[373235321,1752919856616,-480.0,0.00019397,2]
[373235322,1752919856626,-480.0,0.00019397,2]
[373235323,1752919856636,-480.0,0.00019397,2]
[373235324,1752919856646,-480.0,0.00019397,2]
[373235325,1752919856655,-297.95,0.00019397,2]
[373235326,1752919856665,-480.0,0.00019397,2]
[373235327,1752919856675,-480.0,0.00019397,2]
[373235328,1752919856684,-480.0,0.00019397,2]
[373235329,1752919856694,-480.0,0.00019397,2]
[373235330,1752919856704,-480.0,0.00019397,2]
[373235331,1752919856714,-480.0,0.00019397,2]
[373235332,1752919856723,-480.0,0.00019397,2]
[373235333,1752919856733,-480.0,0.00019397,2]
[373235334,1752919856743,-460.0,0.00019397,2]
[373235335,1752919856752,-420.0,0.00019397,2]
[373235336,1752919856762,-480.0,0.00019397,2]
[373235337,1752919856771,-425.68924238,0.00019397,2]
[373235338,1752919856781,-480.0,0.00019397,2]
[373235339,1752919856791,-420.0,0.00019397,2]
[373235340,1752919856800,-420.73889108,0.00019397,2]
[373235341,1752919856810,-477.58307301,0.00019397,2]
[373235342,1752919856819,-519.7,0.00019397,2]
[373235343,1752919856830,-426.90415238,0.00019397,2]
[373235344,1752919856841,-567.66161959,0.00019397,2]
[373235345,1752919856851,-480.0,0.00019397,2]
[373235346,1752919856861,-429.94511877,0.00019397,2]
[373235347,1752919856871,-420.0,0.00019397,2]
[373235348,1752919856880,-480.0,0.00019397,2]
[373235349,1752919856889,-426.65623089,0.00019397,2]
[373235350,1752919856899,-480.0,0.00019397,2]
[373235351,1752919856910,-420.0,0.00019397,2]
[373235352,1752919856919,-480.0,0.00019397,2]
[373235353,1752919856929,-480.0,0.00019397,2]
[373235354,1752919856938,-434.16407366,0.00019397,2]
[373235355,1752919856948,-450.43771868,0.00019397,2]
[373235356,1752919856957,-435.94,0.00019397,2]
[373235357,1752919856967,-440.0,0.00019397,2]
[373235358,1752919856976,-489.87,0.00019397,2]
[373235359,1752919856985,-424.07533692,0.00019397,2]
[373235360,1752919856995,-219.73657179,0.00019397,2]
[373235361,1752919857005,-420.0,0.00019397,2]
[373235362,1752919857014,-480.0,0.00019397,2]
[373235363,1752919857024,-257.19876272,0.00019397,2]
[373235364,1752919857034,-480.0,0.00019397,2]
[373235365,1752919857044,-480.0,0.00019397,2]
[373235366,1752919857053,-480.0,0.00019397,2]
[373235367,1752919857063,-480.0,0.00019397,2]
[373235368,1752919857072,-480.0,0.00019397,2]
[373235369,1752919857082,-588.32,0.00019397,2]
[373235370,1752919857091,-480.0,0.00019397,2]
[373235371,1752919857101,-480.0,0.00019397,2]
[373235372,1752919857111,-518.65,0.00019397,2]
[373235373,1752919857120,-434.56569676,0.00019397,2]
[373235374,1752919857130,-3225.72,0.00019397,2]
[373235375,1752919857139,-151.0,0.00019397,2]
[373235376,1752919857149,-480.0,0.00019397,2]
[373235377,1752919857160,-480.0,0.00019397,2]
[373235378,1752919857169,-929.65,0.00019397,2]
[373235379,1752919857179,-546.84,0.00019397,2]
[373235380,1752919857189,-480.0,0.00019397,2]
[373235381,1752919857199,-347.7246915,0.00019397,2]
[373235382,1752919857209,-480.0,0.00019397,2]
[373235383,1752919857219,-288.02,0.00019397,2]
[373235384,1752919857228,-3351.16,0.00019397,2]
[373235385,1752919857238,-420.0,0.00019397,2]
[373235386,1752919857248,-3462.2,0.00019397,2]
[373235387,1752919857258,-354.28,0.00019397,2]
[373235388,1752919857269,-480.0,0.00019397,2]
[373235389,1752919857279,-330.15966153,0.00019397,2]
[373235390,1752919857288,-480.0,0.00019397,2]
[373235391,1752919857298,-3220.57,0.00019397,2]
[373235392,1752919857307,-420.0,0.00019397,2]
[373235393,1752919857318,-420.0,0.00019397,2]
[373235394,1752919857328,-480.0,0.00019397,2]
[373235395,1752919857338,-480.0,0.00019397,2]
[373235396,1752919857348,-480.0,0.00019397,2]
[373235397,1752919857358,-877.62,0.00019397,2]
[373235398,1752919857369,-420.0,0.00019397,2]
[373235399,1752919857381,-480.0,0.00019397,2]
[373235400,1752919857391,-308.68,0.00019397,2]
[373235401,1752919857401,-480.0,0.00019397,2]
[373235402,1752919857410,-300.31,0.00019397,2]
[373235403,1752919857420,-480.0,0.00019397,2]
[373235404,1752919857430,-480.0,0.00019397,2]
[373235405,1752919857439,-480.0,0.00019397,2]
[373235406,1752919857449,-522.59,0.00019397,2]
[373235407,1752919857459,-611.8,0.00019397,2]
[373235408,1752919857469,-480.0,0.00019397,2]
[373235409,1752919857478,-992.53,0.00019397,2]
[373235410,1752919857488,-685.01,0.00019397,2]
[373235411,1752919857498,-1637.825904,0.00019397,2]
[373235412,1752919857508,-600.32249822,0.00019397,2]
[373235413,1752919857518,-588.9,0.00019397,2]
[373235414,1752919857527,-1571.285944,0.00019397,2]
[373235415,1752919857536,-452.75095119,0.00019397,2]
[373235416,1752919857546,-480.0,0.00019397,2]
[373235417,1752919857555,-349.44058219,0.00019397,2]
[373235418,1752919857565,-2233.87,0.00019397,2]
[373235419,1752919857575,-457.84193361,0.00019397,2]
[373235420,1752919857584,-851.61,0.00019397,2]
[373235421,1752919857594,-718.81,0.00019397,2]
[373235422,1752919857603,-480.0,0.00019397,2]
[373235423,1752919857613,-480.0,0.00019397,2]
[373235424,1752919857623,-1358.36,0.00019397,2]
[373235425,1752919857633,-1477.64,0.00019397,2]
[373235426,1752919857645,-424.9215013,0.00019397,2]
[373235427,1752919857655,-480.0,0.00019397,2]
[373235428,1752919857664,-480.0,0.00019397,2]
[373235429,1752919857674,-646.65,0.00019397,2]
[373235430,1752919857683,-480.0,0.00019397,2]
[373235431,1752919857692,-482.5,0.00019397,2]
[373235432,1752919857702,-622.90960212,0.00019397,2]
[373235433,1752919857712,-251.81,0.00019397,2]
[373235434,1752919857721,-480.0,0.00019397,2]
[373235435,1752919857731,-480.0,0.00019397,2]
[373235436,1752919857744,-174.2,0.00019397,2]
[373235437,1752919857756,-1030.46,0.00019397,2]
[373235438,1752919857766,-480.0,0.00019397,2]
[373235439,1752919857776,-480.0,0.00019397,2]
[373235440,1752919857786,-480.0,0.00019397,2]
[373235441,1752919857795,-480.0,0.00019397,2]
[373235442,1752919857805,-480.0,0.00019397,2]
[373235443,1752919857815,-1186.415593,0.00019397,2]
[373235444,1752919857824,-602.24,0.00019397,2]
[373235445,1752919857838,-561.17,0.00019397,2]
[373235446,1752919857848,-480.0,0.00019397,2]
[373235447,1752919857858,-480.0,0.00019397,2]
[373235448,1752919857868,-480.0,0.00019397,2]
[373235449,1752919857878,-480.0,0.00019397,2]
[373235450,1752919857888,-480.0,0.00019397,2]
[373235451,1752919857898,-427.55929067,0.00019397,2]
[373235452,1752919857909,-480.0,0.00019397,2]
[373235453,1752919857919,-1659.56,0.00019397,2]
[373235454,1752919857929,-517.84,0.00019397,2]
[373235455,1752919857938,-257.02,0.00019397,2]
[373235456,1752919857948,-658.15,0.00019397,2]
[373235457,1752919857957,-480.0,0.00019397,2]
[373235458,1752919857967,-153.28,0.00019397,2]
[373235459,1752919857977,-480.0,0.00019397,2]
[373235460,1752919857987,-480.0,0.00019397,2]
[373235461,1752919857997,-676.84,0.00019397,2]
[373235462,1752919858008,-480.0,0.00019397,2]
[373235463,1752919858017,-480.0,0.00019397,2]
[373235464,1752919858027,-480.0,0.00019397,2]
[373235465,1752919858037,-480.0,0.00019397,2]
[373235466,1752919858047,-1947.23,0.00019397,2]
[373235467,1752919858057,-480.0,0.00019397,2]
[373235468,1752919858067,-837.04,0.00019397,2]
[373235469,1752919858077,-1120.43,0.00019397,2]
[373235470,1752919858087,-480.0,0.00019397,2]
[373235471,1752919858097,-480.0,0.00019397,2]
[373235472,1752919858107,-1479.44,0.00019397,2]
[373235473,1752919858116,-420.0,0.00019397,2]
[373235474,1752919858126,-480.0,0.00019397,2]
[373235475,1752919858135,-480.0,0.00019397,2]
[373235476,1752919858145,-1240.19,0.00019397,2]
[373235477,1752919858155,-1104.98,0.00019397,2]
[373235478,1752919858165,-480.0,0.00019397,2]
[373235479,1752919858174,-423.88286597,0.00019397,2]
[373235480,1752919858184,-1213.06,0.00019397,2]
[373235481,1752919858194,-1325.85,0.00019397,2]
[373235482,1752919858204,-480.0,0.00019397,2]
[373235483,1752919858213,-480.0,0.00019397,2]
[373235484,1752919858223,-480.0,0.00019397,2]
[373235485,1752919858233,-499.89391906,0.00019397,2]
[373235486,1752919858244,-153.65947052,0.00019397,2]
[373235487,1752919858254,-480.0,0.00019397,2]
[373235488,1752919858263,-495.17,0.00019397,2]
[373235489,1752919858274,-480.0,0.00019397,2]
[373235490,1752919858284,-602.67,0.00019397,2]
[373235491,1752919858293,-480.0,0.00019397,2]
[373235492,1752919858303,-1656.17,0.00019397,2]
[373235493,1752919858313,-480.0,0.00019397,2]
[373235494,1752919858323,-480.0,0.00019397,2]
[373235495,1752919858333,-480.0,0.00019397,2]
[373235496,1752919858343,-480.0,0.00019397,2]
[373235497,1752919858353,-2682.58,0.00019397,2]
[373235498,1752919858363,-480.0,0.00019397,2]
[373235499,1752919858373,-480.0,0.00019397,2]
[373235500,1752919858383,-2820.87,0.00019397,2]
[373235501,1752919858393,-955.39,0.00019397,2]
[373235502,1752919858402,-245.79189996,0.00019397,2]
[373235503,1752919858413,-480.0,0.00019397,2]
[373235504,1752919858423,-480.0,0.00019397,2]
[373235505,1752919858432,-480.0,0.00019397,2]
[373235506,1752919858442,-824.58,0.00019397,2]
[373235507,1752919858452,-480.0,0.00019397,2]
[373235508,1752919858461,-480.0,0.00019397,2]
[373235509,1752919858471,-480.0,0.00019397,2]
[373235510,1752919858480,-480.0,0.00019397,2]
[373235511,1752919858490,-1507.25,0.00019397,2]
[373235512,1752919858500,-1820.5,0.00019397,2]
[373235513,1752919858510,-1304.87,0.00019397,2]
[373235514,1752919858520,-1009.35,0.00019397,2]
[373235515,1752919858531,-480.0,0.00019397,2]
[373235516,1752919858540,-480.0,0.00019397,2]
[373235517,1752919858549,-1085.77,0.00019397,2]
[373235518,1752919858559,-480.0,0.00019397,2]
[373235519,1752919858568,-677.53,0.00019397,2]
[373235520,1752919858578,-621.85,0.00019397,2]
[373235521,1752919858587,-506.06,0.00019397,2]
[373235522,1752919858597,-480.0,0.00019397,2]
[373235523,1752919858606,-578.45,0.00019397,2]
[373235524,1752919858616,-480.0,0.00019397,2]
[373235525,1752919858625,-1106.32,0.00019397,2]
[373235526,1752919858635,-480.0,0.00019397,2]
[373235527,1752919858645,-1288.84,0.00019397,2]
[373235528,1752919858654,-505.94,0.00019397,2]
[373235529,1752919858664,-480.0,0.00019397,2]
[373235530,1752919858674,-480.0,0.00019397,2]
[373235531,1752919858683,-480.0,0.00019397,2]
[373235532,1752919858693,-518.09,0.00019397,2]
[373235533,1752919858703,-1483.96,0.00019397,2]
[373235534,1752919858714,-480.0,0.00019397,2]